[Event "Titled Tuesday Blitz November 08 Early 2022"]
[White "Matveeva, Olga"]
[Black "Fernandez Hernandez, Gerardo"]
[WhiteFideId "24107018"]
[BlackFideId "2207400"]
[WhiteElo "2055"]
[BlackElo "2231"]
[Result "0-1"]
[Round "10"]
[TimeControl "180+1"]
[Date "2022.11.09"]
[WhiteClock "0:00:04"]
[BlackClock "0:00:10"]

1. d4 {[%clk 0:03:00]}  Nf6 {[%clk 0:02:59]} 2. c4 {[%clk 0:03:00]}  c5 {[%clk 0:02:59]} 3. d5 {[%clk 0:03:00]}  b5 {[%clk 0:02:59]} 4. cxb5 {[%clk 0:03:01]}  a6 {[%clk 0:02:59]} 5. bxa6 {[%clk 0:03:01]}  g6 {[%clk 0:02:59]} 6. Nc3 {[%clk 0:03:02]}  Bg7 {[%clk 0:02:59]} 7. Nf3 {[%clk 0:03:02]}  O-O {[%clk 0:02:58]} 8. g3 {[%clk 0:03:03]}  Bxa6 {[%clk 0:02:53]} 9. Bg2 {[%clk 0:03:03]}  d6 {[%clk 0:02:54]} 10. O-O {[%clk 0:03:03]}  Nbd7 {[%clk 0:02:54]} 11. Rb1 {[%clk 0:03:04]}  Qa5 {[%clk 0:02:48]} 12. Bd2 {[%clk 0:03:03]}  Qc7 {[%clk 0:02:40]} 13. b3 {[%clk 0:03:01]}  Nb6 {[%clk 0:02:35]} 14. Ne1 {[%clk 0:02:48]}  Bb7 {[%clk 0:02:31]} 15. Bg5 {[%clk 0:02:19]}  h6 {[%clk 0:02:19]} 16. Bf4 {[%clk 0:02:15]}  Nh5 {[%clk 0:02:16]} 17. Bd2 {[%clk 0:02:07]}  Nf6 {[%clk 0:02:14]} 18. Bf4 {[%clk 0:02:06]}  Nh5 {[%clk 0:02:08]} 19. Bd2 {[%clk 0:02:02]}  Nf6 {[%clk 0:02:07]} 20. Qc1 {[%clk 0:01:47]}  Nfxd5 {[%clk 0:01:54]} 21. Nxd5 {[%clk 0:01:44]}  Nxd5 {[%clk 0:01:47]} 22. Bxh6 {[%clk 0:01:43]}  Rxa2 {[%clk 0:01:46]} 23. Bxg7 {[%clk 0:01:40]}  Kxg7 {[%clk 0:01:46]} 24. Qc4 {[%clk 0:01:26]}  Nb4 {[%clk 0:01:21]} 25. Qc3+ {[%clk 0:01:22]}  f6 {[%clk 0:01:16]} 26. Rc1 {[%clk 0:01:18]}  Qb6 {[%clk 0:00:54]} 27. Qe3 {[%clk 0:01:08]}  Qc7 {[%clk 0:00:49]} 28. Nd3 {[%clk 0:01:02]}  Nxd3 {[%clk 0:00:44]} 29. Qxd3 {[%clk 0:00:58]}  Bxg2 {[%clk 0:00:44]} 30. Kxg2 {[%clk 0:00:59]}  Rfa8 {[%clk 0:00:41]} 31. b4 {[%clk 0:00:58]}  Qb7+ {[%clk 0:00:39]} 32. f3 {[%clk 0:00:51]}  Qxb4 {[%clk 0:00:39]} 33. Qe3 {[%clk 0:00:50]}  Qb7 {[%clk 0:00:29]} 34. Rb1 {[%clk 0:00:48]}  Qd7 {[%clk 0:00:26]} 35. Rfd1 {[%clk 0:00:45]}  R8a3 {[%clk 0:00:25]} 36. Qe4 {[%clk 0:00:32]}  f5 {[%clk 0:00:24]} 37. Qc4 {[%clk 0:00:32]}  Qa4 {[%clk 0:00:20]} 38. Qxa4 {[%clk 0:00:28]}  Rxa4 {[%clk 0:00:20]} 39. Kf2 {[%clk 0:00:28]}  Rc2 {[%clk 0:00:19]} 40. Rb7 {[%clk 0:00:21]}  Kf6 {[%clk 0:00:19]} 41. h4 {[%clk 0:00:20]}  Raa2 {[%clk 0:00:19]} 42. Re1 {[%clk 0:00:20]}  c4 {[%clk 0:00:19]} 43. g4 {[%clk 0:00:19]}  d5 {[%clk 0:00:19]} 44. Rb6+ {[%clk 0:00:18]}  e6 {[%clk 0:00:18]} 45. g5+ {[%clk 0:00:17]}  Ke5 {[%clk 0:00:15]} 46. Rb7 {[%clk 0:00:17]}  d4 {[%clk 0:00:15]} 47. h5 {[%clk 0:00:17]}  gxh5 {[%clk 0:00:14]} 48. g6 {[%clk 0:00:17]}  d3 {[%clk 0:00:14]} 49. g7 {[%clk 0:00:17]}  Ra8 {[%clk 0:00:12]} 50. Rf7 {[%clk 0:00:14]}  Rg8 {[%clk 0:00:10]} 51. f4+ {[%clk 0:00:10]}  Ke4 {[%clk 0:00:09]} 52. Kg3 {[%clk 0:00:07]}  Rxe2 {[%clk 0:00:09]} 53. Ra1 {[%clk 0:00:06]}  Re3+ {[%clk 0:00:09]} 54. Kf2 {[%clk 0:00:06]}  Rf3+ {[%clk 0:00:09]} 55. Kg2 {[%clk 0:00:06]}  Rxf4 {[%clk 0:00:09]} 56. Re1+ {[%clk 0:00:05]}  Kd4 {[%clk 0:00:09]} 57. Rxe6 {[%clk 0:00:06]}  Rg4+ {[%clk 0:00:09]} 58. Kf3 {[%clk 0:00:06]}  R8xg7 {[%clk 0:00:10]} 59. Rff6 {[%clk 0:00:05]}  Rg3+ {[%clk 0:00:09]} 60. Kf2 {[%clk 0:00:06]}  Rg2+ {[%clk 0:00:10]} 61. Kf1 {[%clk 0:00:06]}  d2 {[%clk 0:00:10]} 62. Rd6+ {[%clk 0:00:06]}  Kc3 {[%clk 0:00:11]} 63. Rxf5 {[%clk 0:00:05]}  Rg1+ {[%clk 0:00:11]} 64. Ke2 {[%clk 0:00:06]}  R7g2+ {[%clk 0:00:11]} 65. Rf2 {[%clk 0:00:06]}  Rxf2+ {[%clk 0:00:11]} 66. Kxf2 {[%clk 0:00:07]}  d1=Q {[%clk 0:00:11]} 67. Rd3+ {[%clk 0:00:04]}  Qxd3 {[%clk 0:00:10]} 0-1


[Site "https://www.chess.com"]

[Event "Titled Tuesday Blitz November 08 Early 2022"]
[White "Mazurkiewicz, Michal"]
[Black "Terzi, Alexei"]
[WhiteFideId "1124943"]
[BlackFideId "13505076"]
[WhiteElo "2063"]
[BlackElo "2172"]
[Result "0-1"]
[Round "10"]
[TimeControl "180+1"]
[Date "2022.11.09"]
[WhiteClock "0:00:47"]
[BlackClock "0:00:53"]

1. e4 {[%clk 0:03:00]}  c5 {[%clk 0:02:59]} 2. Nf3 {[%clk 0:02:59]}  Nc6 {[%clk 0:02:59]} 3. g3 {[%clk 0:02:59]}  g6 {[%clk 0:02:59]} 4. Bg2 {[%clk 0:02:59]}  Bg7 {[%clk 0:02:59]} 5. O-O {[%clk 0:03:00]}  e6 {[%clk 0:02:56]} 6. d3 {[%clk 0:02:59]}  Nge7 {[%clk 0:02:56]} 7. Re1 {[%clk 0:02:59]}  d6 {[%clk 0:02:55]} 8. c3 {[%clk 0:02:59]}  O-O {[%clk 0:02:55]} 9. d4 {[%clk 0:03:00]}  cxd4 {[%clk 0:02:48]} 10. cxd4 {[%clk 0:03:01]}  e5 {[%clk 0:02:48]} 11. d5 {[%clk 0:02:55]}  Nd4 {[%clk 0:02:48]} 12. Nxd4 {[%clk 0:02:54]}  exd4 {[%clk 0:02:49]} 13. Nd2 {[%clk 0:02:55]}  Bd7 {[%clk 0:02:42]} 14. Nb3 {[%clk 0:02:55]}  Ba4 {[%clk 0:02:41]} 15. Qd3 {[%clk 0:02:48]}  Qb6 {[%clk 0:02:37]} 16. Bg5 {[%clk 0:02:42]}  Rfe8 {[%clk 0:02:29]} 17. Rac1 {[%clk 0:02:35]}  h6 {[%clk 0:02:21]} 18. Bd2 {[%clk 0:02:24]}  Bxb3 {[%clk 0:02:05]} 19. Qxb3 {[%clk 0:02:22]}  Nc8 {[%clk 0:01:55]} 20. Qa3 {[%clk 0:01:54]}  a5 {[%clk 0:01:48]} 21. Bh3 {[%clk 0:01:36]}  Ne7 {[%clk 0:01:27]} 22. Qb3 {[%clk 0:01:31]}  Qxb3 {[%clk 0:01:17]} 23. axb3 {[%clk 0:01:32]}  a4 {[%clk 0:01:16]} 24. b4 {[%clk 0:01:19]}  a3 {[%clk 0:01:06]} 25. bxa3 {[%clk 0:01:14]}  Rxa3 {[%clk 0:01:07]} 26. Rc7 {[%clk 0:01:13]}  b5 {[%clk 0:01:06]} 27. Bf4 {[%clk 0:01:11]}  Nxd5 {[%clk 0:01:03]} 28. exd5 {[%clk 0:01:04]}  Rxe1+ {[%clk 0:01:02]} 29. Kg2 {[%clk 0:01:05]}  Be5 {[%clk 0:01:01]} 30. Bd7 {[%clk 0:00:50]}  Bxf4 {[%clk 0:00:54]} 31. gxf4 {[%clk 0:00:51]}  d3 {[%clk 0:00:54]} 32. Be8 {[%clk 0:00:47]}  Rxe8 {[%clk 0:00:53]} 0-1


[Site "https://www.chess.com"]

[Event "Titled Tuesday Blitz November 08 Early 2022"]
[White "Melikyan, Gnel"]
[Black "Kirillov, Dmitry"]
[WhiteFideId "54109990"]
[BlackFideId "34180572"]
[WhiteElo "2138"]
[BlackElo "2095"]
[Result "1-0"]
[Round "10"]
[TimeControl "180+1"]
[Date "2022.11.09"]
[WhiteClock "0:00:54"]
[BlackClock "0:00:05"]

1. d4 {[%clk 0:02:55]}  d5 {[%clk 0:02:59]} 2. c4 {[%clk 0:02:55]}  e6 {[%clk 0:03:00]} 3. Nc3 {[%clk 0:02:55]}  c6 {[%clk 0:03:00]} 4. e4 {[%clk 0:02:55]}  Bb4 {[%clk 0:02:59]} 5. exd5 {[%clk 0:02:54]}  exd5 {[%clk 0:02:58]} 6. Nf3 {[%clk 0:02:54]}  Nf6 {[%clk 0:02:56]} 7. Be2 {[%clk 0:02:54]}  O-O {[%clk 0:02:53]} 8. O-O {[%clk 0:02:53]}  Bf5 {[%clk 0:02:51]} 9. cxd5 {[%clk 0:02:53]}  cxd5 {[%clk 0:02:50]} 10. Qb3 {[%clk 0:02:52]}  Nc6 {[%clk 0:02:47]} 11. Bg5 {[%clk 0:02:51]}  Bxc3 {[%clk 0:02:44]} 12. bxc3 {[%clk 0:02:51]}  Re8 {[%clk 0:02:39]} 13. Qxb7 {[%clk 0:02:26]}  Na5 {[%clk 0:02:18]} 14. Qb2 {[%clk 0:02:24]}  Rb8 {[%clk 0:02:15]} 15. Qd2 {[%clk 0:02:23]}  Ne4 {[%clk 0:02:08]} 16. Bxd8 {[%clk 0:02:22]}  Nxd2 {[%clk 0:02:07]} 17. Bxa5 {[%clk 0:02:11]}  Rxe2 {[%clk 0:02:05]} 18. Nxd2 {[%clk 0:01:55]}  Rxd2 {[%clk 0:02:06]} 19. Bb4 {[%clk 0:01:53]}  Be4 {[%clk 0:01:53]} 20. a4 {[%clk 0:01:49]}  f6 {[%clk 0:01:36]} 21. Rfd1 {[%clk 0:01:41]}  Rxd1+ {[%clk 0:01:24]} 22. Rxd1 {[%clk 0:01:40]}  Bc2 {[%clk 0:01:25]} 23. Re1 {[%clk 0:01:39]}  Bxa4 {[%clk 0:01:21]} 24. Ra1 {[%clk 0:01:38]}  Bb3 {[%clk 0:00:47]} 25. Rxa7 {[%clk 0:01:35]}  Re8 {[%clk 0:00:47]} 26. h3 {[%clk 0:01:27]}  Bc2 {[%clk 0:00:38]} 27. Rd7 {[%clk 0:01:25]}  Bb3 {[%clk 0:00:34]} 28. Kh2 {[%clk 0:01:24]}  h6 {[%clk 0:00:32]} 29. Kg3 {[%clk 0:01:23]}  Kh7 {[%clk 0:00:31]} 30. h4 {[%clk 0:01:19]}  Kg6 {[%clk 0:00:30]} 31. h5+ {[%clk 0:01:19]}  Kxh5 {[%clk 0:00:22]} 32. Rxg7 {[%clk 0:01:19]}  Bc2 {[%clk 0:00:20]} 33. Kh3 {[%clk 0:01:16]}  Bg6 {[%clk 0:00:09]} 34. g4+ {[%clk 0:01:01]}  Kg5 {[%clk 0:00:07]} 35. f4+ {[%clk 0:00:54]}  Kxf4 {[%clk 0:00:05]} 36. Rxg6 {[%clk 0:00:54]}  Re3+ {[%clk 0:00:05]} 37. Kh4 {[%clk 0:00:54]} 1-0


[Site "https://www.chess.com"]

[Event "Titled Tuesday Blitz November 08 Early 2022"]
[White "Mendez Fortes, Eduardo Jesus"]
[Black "Schmidt, Tobias"]
[WhiteFideId "3502376"]
[BlackFideId "1271683"]
[WhiteElo "2307"]
[BlackElo "2328"]
[Result "0-1"]
[Round "10"]
[TimeControl "180+1"]
[Date "2022.11.09"]
[WhiteClock "0:00:12"]
[BlackClock "0:00:05"]

1. e4 {[%clk 0:03:00]}  e5 {[%clk 0:02:57]} 2. Nf3 {[%clk 0:03:01]}  Nf6 {[%clk 0:02:56]} 3. d4 {[%clk 0:03:00]}  Nxe4 {[%clk 0:02:45]} 4. Bd3 {[%clk 0:02:59]}  Nc6 {[%clk 0:02:45]} 5. dxe5 {[%clk 0:02:56]}  Nc5 {[%clk 0:02:41]} 6. O-O {[%clk 0:02:54]}  Nxd3 {[%clk 0:02:39]} 7. cxd3 {[%clk 0:02:55]}  Be7 {[%clk 0:02:36]} 8. d4 {[%clk 0:02:53]}  d5 {[%clk 0:02:36]} 9. h3 {[%clk 0:02:51]}  O-O {[%clk 0:02:34]} 10. Nc3 {[%clk 0:02:51]}  Be6 {[%clk 0:02:30]} 11. Ne2 {[%clk 0:02:48]}  Qd7 {[%clk 0:02:22]} 12. Nf4 {[%clk 0:02:44]}  Bf5 {[%clk 0:02:22]} 13. Re1 {[%clk 0:02:44]}  Be4 {[%clk 0:02:21]} 14. Be3 {[%clk 0:02:42]}  a5 {[%clk 0:02:14]} 15. Nd2 {[%clk 0:02:35]}  Bf5 {[%clk 0:02:12]} 16. Qb3 {[%clk 0:02:30]}  a4 {[%clk 0:02:09]} 17. Qxd5 {[%clk 0:02:27]}  Nb4 {[%clk 0:02:04]} 18. Qxd7 {[%clk 0:02:24]}  Bxd7 {[%clk 0:02:05]} 19. Rec1 {[%clk 0:02:18]}  g5 {[%clk 0:01:51]} 20. Rxc7 {[%clk 0:02:06]}  gxf4 {[%clk 0:01:49]} 21. Bxf4 {[%clk 0:02:04]}  Rfd8 {[%clk 0:01:40]} 22. Bh6 {[%clk 0:02:01]}  Nd5 {[%clk 0:01:35]} 23. Rcc1 {[%clk 0:01:55]}  Rac8 {[%clk 0:01:30]} 24. Ne4 {[%clk 0:01:48]}  Bf5 {[%clk 0:01:24]} 25. Ng3 {[%clk 0:01:45]}  Bc2 {[%clk 0:01:17]} 26. a3 {[%clk 0:01:35]}  Rc6 {[%clk 0:01:16]} 27. Bd2 {[%clk 0:01:33]}  Rdc8 {[%clk 0:01:16]} 28. f4 {[%clk 0:01:31]}  Bh4 {[%clk 0:01:11]} 29. Nh1 {[%clk 0:01:22]}  Be4 {[%clk 0:01:01]} 30. Rxc6 {[%clk 0:01:16]}  Rxc6 {[%clk 0:01:00]} 31. Be1 {[%clk 0:01:16]}  Rc2 {[%clk 0:00:43]} 32. Bf2 {[%clk 0:00:59]}  Nxf4 {[%clk 0:00:34]} 33. Re1 {[%clk 0:00:40]}  Bxf2+ {[%clk 0:00:20]} 34. Nxf2 {[%clk 0:00:39]}  Ne2+ {[%clk 0:00:21]} 35. Kh1 {[%clk 0:00:39]}  Ng3+ {[%clk 0:00:18]} 36. Kg1 {[%clk 0:00:38]}  Bd5 {[%clk 0:00:18]} 37. Re3 {[%clk 0:00:35]}  Ne2+ {[%clk 0:00:18]} 38. Kh2 {[%clk 0:00:29]}  Nxd4 {[%clk 0:00:18]} 39. Rg3+ {[%clk 0:00:25]}  Kf8 {[%clk 0:00:17]} 40. Nd3 {[%clk 0:00:20]}  Nf3+ {[%clk 0:00:16]} 41. Kh1 {[%clk 0:00:20]}  Nh4 {[%clk 0:00:16]} 42. Nf4 {[%clk 0:00:18]}  Bc6 {[%clk 0:00:16]} 43. Rg4 {[%clk 0:00:18]}  Ng6 {[%clk 0:00:14]} 44. Nh5 {[%clk 0:00:17]}  Nxe5 {[%clk 0:00:13]} 45. Rg5 {[%clk 0:00:17]}  Nd3 {[%clk 0:00:11]} 46. Nf6 {[%clk 0:00:17]}  h6 {[%clk 0:00:10]} 47. Rg8+ {[%clk 0:00:16]}  Ke7 {[%clk 0:00:10]} 48. Nh5 {[%clk 0:00:17]}  Nf2+ {[%clk 0:00:10]} 49. Kg1 {[%clk 0:00:17]}  Ne4 {[%clk 0:00:10]} 50. Nf4 {[%clk 0:00:16]}  Ng5 {[%clk 0:00:10]} 51. h4 {[%clk 0:00:16]}  Ne6 {[%clk 0:00:09]} 52. Nd3 {[%clk 0:00:15]}  Rd2 {[%clk 0:00:09]} 53. Ne5 {[%clk 0:00:14]}  Rxb2 {[%clk 0:00:08]} 54. Rb8 {[%clk 0:00:15]}  Rxg2+ {[%clk 0:00:07]} 55. Kf1 {[%clk 0:00:15]}  Ra2 {[%clk 0:00:08]} 56. Ra8 {[%clk 0:00:14]}  Bg2+ {[%clk 0:00:07]} 57. Ke1 {[%clk 0:00:13]}  Nf4 {[%clk 0:00:08]} 58. Nc4 {[%clk 0:00:13]}  Bd5 {[%clk 0:00:08]} 59. Ne3 {[%clk 0:00:12]}  Nd3+ {[%clk 0:00:08]} 60. Kf1 {[%clk 0:00:12]}  Bf3 {[%clk 0:00:08]} 61. Nf5+ {[%clk 0:00:12]}  Kf6 {[%clk 0:00:06]} 62. Nd4 {[%clk 0:00:12]}  Ra1# {[%clk 0:00:05]} 0-1


[Site "https://www.chess.com"]

[Event "Titled Tuesday Blitz November 08 Early 2022"]
[White "Mihailidis, Anastasios"]
[Black "Kuchava, Ana"]
[WhiteFideId "4205588"]
[BlackFideId "13605348"]
[WhiteElo "2312"]
[BlackElo "2001"]
[Result "1/2-1/2"]
[Round "10"]
[TimeControl "180+1"]
[Date "2022.11.09"]
[WhiteClock "0:00:02"]
[BlackClock "0:00:09"]

1. e4 {[%clk 0:03:00]}  c5 {[%clk 0:02:59]} 2. Nf3 {[%clk 0:03:00]}  d6 {[%clk 0:02:59]} 3. d4 {[%clk 0:03:00]}  cxd4 {[%clk 0:03:00]} 4. Nxd4 {[%clk 0:03:01]}  Nf6 {[%clk 0:03:00]} 5. f3 {[%clk 0:03:01]}  Nc6 {[%clk 0:03:00]} 6. c4 {[%clk 0:03:00]}  g6 {[%clk 0:02:57]} 7. Be3 {[%clk 0:03:00]}  Bg7 {[%clk 0:02:57]} 8. Nc3 {[%clk 0:03:00]}  O-O {[%clk 0:02:54]} 9. Be2 {[%clk 0:03:00]}  a6 {[%clk 0:02:50]} 10. O-O {[%clk 0:03:00]}  Qc7 {[%clk 0:02:48]} 11. Rc1 {[%clk 0:02:58]}  Bd7 {[%clk 0:02:45]} 12. Nd5 {[%clk 0:02:58]}  Qd8 {[%clk 0:02:39]} 13. Nxc6 {[%clk 0:02:50]}  bxc6 {[%clk 0:02:40]} 14. Bb6 {[%clk 0:02:48]}  Qb8 {[%clk 0:02:23]} 15. Nxe7+ {[%clk 0:02:43]}  Kh8 {[%clk 0:02:22]} 16. c5 {[%clk 0:02:27]}  dxc5 {[%clk 0:01:58]} 17. Bxc5 {[%clk 0:02:25]}  Qxb2 {[%clk 0:01:31]} 18. e5 {[%clk 0:01:54]}  Qxe5 {[%clk 0:01:25]} 19. Re1 {[%clk 0:01:47]}  Qg5 {[%clk 0:00:55]} 20. Bf1 {[%clk 0:01:34]}  Rfe8 {[%clk 0:00:49]} 21. Qa4 {[%clk 0:01:29]}  Nd5 {[%clk 0:00:30]} 22. Nxd5 {[%clk 0:01:05]}  Qxd5 {[%clk 0:00:31]} 23. Bf2 {[%clk 0:01:00]}  Rxe1 {[%clk 0:00:25]} 24. Rxe1 {[%clk 0:00:59]}  c5 {[%clk 0:00:23]} 25. Qa5 {[%clk 0:00:58]}  Re8 {[%clk 0:00:17]} 26. Rxe8+ {[%clk 0:00:48]}  Bxe8 {[%clk 0:00:18]} 27. Qxc5 {[%clk 0:00:45]}  Qxc5 {[%clk 0:00:16]} 28. Bxc5 {[%clk 0:00:46]}  Bb5 {[%clk 0:00:16]} 29. Bxb5 {[%clk 0:00:44]}  axb5 {[%clk 0:00:17]} 30. Kf2 {[%clk 0:00:44]}  Kg8 {[%clk 0:00:17]} 31. Ke3 {[%clk 0:00:44]}  f5 {[%clk 0:00:18]} 32. Kd3 {[%clk 0:00:43]}  Kf7 {[%clk 0:00:18]} 33. Kc2 {[%clk 0:00:38]}  Ke6 {[%clk 0:00:18]} 34. Kb3 {[%clk 0:00:39]}  Kd5 {[%clk 0:00:17]} 35. Be7 {[%clk 0:00:34]}  Bd4 {[%clk 0:00:12]} 36. Bf8 {[%clk 0:00:25]}  Bg1 {[%clk 0:00:12]} 37. h3 {[%clk 0:00:22]}  Bf2 {[%clk 0:00:13]} 38. Kb4 {[%clk 0:00:19]}  Kc6 {[%clk 0:00:13]} 39. Kc3 {[%clk 0:00:18]}  Be1+ {[%clk 0:00:13]} 40. Kd4 {[%clk 0:00:17]}  Bg3 {[%clk 0:00:12]} 41. Bb4 {[%clk 0:00:14]}  Bf4 {[%clk 0:00:11]} 42. Bf8 {[%clk 0:00:11]}  Bg3 {[%clk 0:00:11]} 43. Bg7 {[%clk 0:00:11]}  Bf4 {[%clk 0:00:11]} 44. Be5 {[%clk 0:00:11]}  Bc1 {[%clk 0:00:11]} 45. Bb8 {[%clk 0:00:09]}  Bb2+ {[%clk 0:00:10]} 46. Ke3 {[%clk 0:00:10]}  Kd5 {[%clk 0:00:10]} 47. Kf4 {[%clk 0:00:09]}  Bc1+ {[%clk 0:00:11]} 48. Kg3 {[%clk 0:00:09]}  Kc4 {[%clk 0:00:11]} 49. Bd6 {[%clk 0:00:07]}  b4 {[%clk 0:00:09]} 50. f4 {[%clk 0:00:06]}  Bd2 {[%clk 0:00:09]} 51. Kh4 {[%clk 0:00:05]}  Kd3 {[%clk 0:00:08]} 52. Kg5 {[%clk 0:00:05]}  Kc2 {[%clk 0:00:07]} 53. Kh6 {[%clk 0:00:03]}  Kb2 {[%clk 0:00:08]} 54. Kxh7 {[%clk 0:00:03]}  Kxa2 {[%clk 0:00:08]} 55. Bxb4 {[%clk 0:00:02]}  Bxb4 {[%clk 0:00:08]} 56. Kxg6 {[%clk 0:00:02]}  Bd2 {[%clk 0:00:07]} 57. Kxf5 {[%clk 0:00:03]}  Kb3 {[%clk 0:00:08]} 58. h4 {[%clk 0:00:03]}  Kc3 {[%clk 0:00:08]} 59. h5 {[%clk 0:00:03]}  Kd4 {[%clk 0:00:09]} 60. h6 {[%clk 0:00:04]}  Kd5 {[%clk 0:00:08]} 61. h7 {[%clk 0:00:03]}  Bc3 {[%clk 0:00:09]} 62. g4 {[%clk 0:00:02]}  Kd6 {[%clk 0:00:09]} 1/2-1/2


[Site "https://www.chess.com"]

[Event "Titled Tuesday Blitz November 08 Early 2022"]
[White "Mouhamad, Joachim"]
[Black "Mirzoev, Azer"]
[WhiteFideId "656410"]
[BlackFideId "13400304"]
[WhiteElo "2164"]
[BlackElo "2525"]
[Result "1-0"]
[Round "10"]
[TimeControl "180+1"]
[Date "2022.11.09"]
[WhiteClock "0:00:30"]
[BlackClock "0:01:30"]

1. e4 {[%clk 0:03:00]}  c5 {[%clk 0:03:00]} 2. Nf3 {[%clk 0:03:01]}  d6 {[%clk 0:03:00]} 3. d4 {[%clk 0:03:01]}  cxd4 {[%clk 0:03:01]} 4. Nxd4 {[%clk 0:03:02]}  Nf6 {[%clk 0:03:00]} 5. Nc3 {[%clk 0:03:03]}  a6 {[%clk 0:03:01]} 6. f3 {[%clk 0:03:03]}  b5 {[%clk 0:03:01]} 7. Be3 {[%clk 0:02:58]}  e6 {[%clk 0:02:59]} 8. g4 {[%clk 0:02:57]}  b4 {[%clk 0:02:59]} 9. Nce2 {[%clk 0:02:52]}  Bb7 {[%clk 0:02:55]} 10. Qd2 {[%clk 0:02:48]}  d5 {[%clk 0:02:52]} 11. e5 {[%clk 0:02:46]}  Nfd7 {[%clk 0:02:52]} 12. f4 {[%clk 0:02:44]}  Qh4+ {[%clk 0:02:45]} 13. Ng3 {[%clk 0:02:38]}  Qxg4 {[%clk 0:02:44]} 14. Be2 {[%clk 0:02:34]}  Qh4 {[%clk 0:02:44]} 15. f5 {[%clk 0:02:27]}  Nxe5 {[%clk 0:02:15]} 16. fxe6 {[%clk 0:02:23]}  Nc4 {[%clk 0:01:59]} 17. exf7+ {[%clk 0:02:20]}  Kxf7 {[%clk 0:01:59]} 18. Bxc4 {[%clk 0:02:13]}  dxc4 {[%clk 0:01:58]} 19. O-O+ {[%clk 0:02:08]}  Kg8 {[%clk 0:01:58]} 20. Ne6 {[%clk 0:01:09]}  Be7 {[%clk 0:01:48]} 21. Qd8+ {[%clk 0:00:32]}  Bxd8 {[%clk 0:01:30]} 22. Rf8# {[%clk 0:00:30]} 1-0


[Site "https://www.chess.com"]

[Event "Titled Tuesday Blitz November 08 Early 2022"]
[White "Muminova, Nafisa"]
[Black "Ginzburg, Yakov"]
[WhiteFideId "14201526"]
[BlackFideId "4157176"]
[WhiteElo "2258"]
[BlackElo "2305"]
[Result "0-1"]
[Round "10"]
[TimeControl "180+1"]
[Date "2022.11.09"]
[WhiteClock "0:00:02"]
[BlackClock "0:00:06"]

1. e4 {[%clk 0:03:00]}  c5 {[%clk 0:02:59]} 2. Nf3 {[%clk 0:03:00]}  e6 {[%clk 0:03:00]} 3. d4 {[%clk 0:03:00]}  cxd4 {[%clk 0:03:01]} 4. Nxd4 {[%clk 0:03:00]}  Nf6 {[%clk 0:03:02]} 5. Bd3 {[%clk 0:02:58]}  Nc6 {[%clk 0:03:02]} 6. Nxc6 {[%clk 0:02:53]}  bxc6 {[%clk 0:03:02]} 7. O-O {[%clk 0:02:48]}  d5 {[%clk 0:03:02]} 8. e5 {[%clk 0:02:48]}  Nd7 {[%clk 0:03:02]} 9. Bf4 {[%clk 0:02:45]}  Qb6 {[%clk 0:03:00]} 10. Qc1 {[%clk 0:02:27]}  Ba6 {[%clk 0:02:58]} 11. Nc3 {[%clk 0:02:16]}  Bxd3 {[%clk 0:02:57]} 12. cxd3 {[%clk 0:02:16]}  Be7 {[%clk 0:02:57]} 13. Rb1 {[%clk 0:02:14]}  O-O {[%clk 0:02:56]} 14. Re1 {[%clk 0:02:11]}  Rab8 {[%clk 0:02:54]} 15. Ne2 {[%clk 0:02:09]}  f6 {[%clk 0:02:43]} 16. exf6 {[%clk 0:02:05]}  Rxf6 {[%clk 0:02:42]} 17. Bxb8 {[%clk 0:02:03]}  Qxf2+ {[%clk 0:02:37]} 18. Kh1 {[%clk 0:02:03]}  Nxb8 {[%clk 0:02:37]} 19. Ng3 {[%clk 0:01:58]}  Rh6 {[%clk 0:02:24]} 20. Rf1 {[%clk 0:01:48]}  Qd4 {[%clk 0:02:09]} 21. Qf4 {[%clk 0:01:23]}  Qxf4 {[%clk 0:02:04]} 22. Rxf4 {[%clk 0:01:24]}  Bd6 {[%clk 0:02:04]} 23. Rf3 {[%clk 0:01:23]}  Nd7 {[%clk 0:02:04]} 24. d4 {[%clk 0:01:22]}  Nf6 {[%clk 0:02:04]} 25. Re1 {[%clk 0:01:12]}  Kf7 {[%clk 0:01:45]} 26. Kg1 {[%clk 0:01:09]}  Rh4 {[%clk 0:01:39]} 27. Rd3 {[%clk 0:01:02]}  g6 {[%clk 0:01:24]} 28. Rf1 {[%clk 0:00:57]}  Ke7 {[%clk 0:01:22]} 29. Rc1 {[%clk 0:00:55]}  Kd7 {[%clk 0:01:21]} 30. Rf1 {[%clk 0:00:51]}  Be7 {[%clk 0:01:18]} 31. Ne2 {[%clk 0:00:47]}  Ne4 {[%clk 0:01:14]} 32. g3 {[%clk 0:00:44]}  Rg4 {[%clk 0:01:10]} 33. Rf7 {[%clk 0:00:38]}  h5 {[%clk 0:01:08]} 34. Kg2 {[%clk 0:00:36]}  Nd6 {[%clk 0:01:00]} 35. Rf1 {[%clk 0:00:32]}  Nf5 {[%clk 0:00:55]} 36. h3 {[%clk 0:00:28]}  Re4 {[%clk 0:00:55]} 37. Rf2 {[%clk 0:00:26]}  Bf6 {[%clk 0:00:52]} 38. Nf4 {[%clk 0:00:20]}  Bxd4 {[%clk 0:00:45]} 39. Re2 {[%clk 0:00:19]}  Rxe2+ {[%clk 0:00:43]} 40. Nxe2 {[%clk 0:00:20]}  Bb6 {[%clk 0:00:30]} 41. Nf4 {[%clk 0:00:19]}  e5 {[%clk 0:00:27]} 42. Nxg6 {[%clk 0:00:19]}  e4 {[%clk 0:00:27]} 43. Rd2 {[%clk 0:00:19]}  Ne3+ {[%clk 0:00:27]} 44. Kh1 {[%clk 0:00:17]}  Nf1 {[%clk 0:00:25]} 45. Rg2 {[%clk 0:00:15]}  d4 {[%clk 0:00:24]} 46. Nf4 {[%clk 0:00:16]}  d3 {[%clk 0:00:23]} 47. g4 {[%clk 0:00:14]}  h4 {[%clk 0:00:20]} 48. g5 {[%clk 0:00:14]}  d2 {[%clk 0:00:20]} 49. Rxd2+ {[%clk 0:00:13]}  Nxd2 {[%clk 0:00:19]} 50. g6 {[%clk 0:00:14]}  Bd4 {[%clk 0:00:19]} 51. Kg2 {[%clk 0:00:13]}  e3 {[%clk 0:00:18]} 52. b3 {[%clk 0:00:11]}  Ke7 {[%clk 0:00:17]} 53. Ne2 {[%clk 0:00:11]}  Bb2 {[%clk 0:00:15]} 54. Nf4 {[%clk 0:00:10]}  Kf6 {[%clk 0:00:15]} 55. Nd3 {[%clk 0:00:08]}  Bd4 {[%clk 0:00:15]} 56. Nf4 {[%clk 0:00:07]}  Kf5 {[%clk 0:00:15]} 57. Ne2 {[%clk 0:00:06]}  Bb2 {[%clk 0:00:14]} 58. a4 {[%clk 0:00:06]}  Kxg6 {[%clk 0:00:14]} 59. Nf4+ {[%clk 0:00:04]}  Kf5 {[%clk 0:00:14]} 60. Nd3 {[%clk 0:00:05]}  Bd4 {[%clk 0:00:13]} 61. b4 {[%clk 0:00:06]}  Ke4 {[%clk 0:00:13]} 62. Nc1 {[%clk 0:00:06]}  a6 {[%clk 0:00:12]} 63. Ne2 {[%clk 0:00:05]}  Be5 {[%clk 0:00:09]} 64. b5 {[%clk 0:00:04]}  axb5 {[%clk 0:00:09]} 65. axb5 {[%clk 0:00:05]}  cxb5 {[%clk 0:00:09]} 66. Nc1 {[%clk 0:00:05]}  b4 {[%clk 0:00:08]} 67. Ne2 {[%clk 0:00:05]}  b3 {[%clk 0:00:08]} 68. Nc1 {[%clk 0:00:04]}  b2 {[%clk 0:00:09]} 69. Ne2 {[%clk 0:00:05]}  b1=Q {[%clk 0:00:08]} 70. Ng3+ {[%clk 0:00:04]}  hxg3 {[%clk 0:00:06]} 71. h4 {[%clk 0:00:02]}  Qf1# {[%clk 0:00:06]} 0-1


[Site "https://www.chess.com"]